bitfinex-derivatives/quotes_SOLF0:USTF0_20250309
["timestamp","ask_amount","ask_price","bid_price","bid_amount"]
[1741516155871,7.2966,137.08,137.03,7.2989]
[1741516156867,0.05337618,137.07,137.04,0.04593559]
[1741516157363,0.05337618,137.07,137.04,7.34433559]
[1741516158468,0.05337618,137.07,137.04,0.04593559]
[1741516158671,0.05337618,137.07,137.04,7.34413559]
[1741516158960,0.05337618,137.07,137.04,0.04593559]
[1741516158961,7.35017618,137.07,137.04,0.04593559]
[1741516159871,0.05337618,137.07,137.04,0.04593559]
[1741516160671,7.2979,137.05,137.04,0.04593559]
[1741516161064,0.05337618,137.07,137.06,7.2973]
[1741516162269,7.618e-05,137.07,137.06,7.2973]
[1741516163772,7.618e-05,137.07,137.04,0.04593559]
[1741516164369,7.618e-05,137.07,137.04,7.34413559]
[1741516164566,7.618e-05,137.07,137.04,0.04593559]
[1741516164769,7.618e-05,137.07,137.05,7.2979]
[1741516165072,7.618e-05,137.07,137.04,0.04593559]
[1741516165565,7.618e-05,137.07,137.06,7.2973]
[1741516166569,7.618e-05,137.07,137.05,7.2977]
[1741516167173,7.29697618,137.07,137.04,0.04593559]
[1741516167768,7.2975,137.06,137.04,0.04593559]
[1741516167967,7.618e-05,137.07,137.04,0.04593559]
[1741516169764,7.618e-05,137.07,137.05,7.2979]
[1741516170171,7.618e-05,137.07,137.04,0.04593559]
[1741516173278,7.618e-05,137.07,137.04,7.34403559]
[1741516173482,7.618e-05,137.07,137.04,0.04593559]
[1741516173683,7.29707618,137.07,137.04,7.34433559]
[1741516173876,7.618e-05,137.07,137.04,0.04593559]
[1741516174180,7.2979,137.05,137.04,0.04593559]
[1741516176682,7.2998,137.02,136.98,29.6]
[1741516176982,5.774,137.06,136.96,29.54]
[1741516177578,29.6,137.07,136.96,29.54]
[1741516177776,0.05011592,137.02,137.0,0.05313473]
[1741516178085,0.04699946,137.02,137.01,7.3]
[1741516178684,7.2971,137.07,137.04,7.2983]
[1741516179082,3.8751,137.12,137.01,5.9523]
[1741516179282,29.46,137.11,137.01,5.9523]
[1741516179881,0.04919698,137.07,137.05,0.05271383]
[1741516180890,0.04919698,137.07,137.06,7.2973]
[1741516182287,0.04919698,137.07,137.05,0.05271383]
[1741516182490,7.2973,137.06,137.05,0.05271383]
[1741516182682,0.04919698,137.07,137.05,0.05271383]
[1741516182882,29.90919698,137.07,137.05,0.05271383]
[1741516183088,7.2973,137.06,137.05,0.05271383]
[1741516188990,29.90919698,137.07,137.05,0.05271383]
[1741516189192,7.34629698,137.07,137.05,0.05271383]
[1741516189789,0.04919698,137.07,137.05,0.05271383]
[1741516189986,0.04919698,137.07,137.05,7.35051383]
[1741516190225,0.04919698,137.07,137.05,0.05271383]
[1741516190417,0.04919698,137.07,137.06,7.2973]
[1741516192498,0.04919698,137.07,137.05,7.35031383]
[1741516192691,0.04919698,137.07,137.05,0.05271383]
[1741516193297,7.2973,137.06,137.05,0.05271383]
[1741516196093,7.2999,137.02,136.99,7.3008]
[1741516196803,7.2993,137.03,136.99,7.3007]
[1741516196999,29.52,137.04,136.97,5.882]
[1741516197204,7.3006,137.0,136.99,0.0465306]
[1741516198000,0.05562095,137.02,136.99,0.0465306]
[1741516198604,0.05562095,137.02,136.99,7.3472306]
[1741516199198,0.05562095,137.02,137.01,7.3]
[1741516200993,0.05562095,137.02,136.99,0.0465306]
[1741516202099,7.35512095,137.02,136.99,7.3471306]
[1741516202397,29.46,137.01,136.99,0.0465306]
[1741516202804,29.46,137.01,136.92,5.961]
[1741516203299,7.3025,136.97,136.93,7.3039]
[1741516203506,29.46,137.01,136.93,7.3039]
[1741516203705,29.46,137.01,136.89,240.88]
[1741516203904,7.3033,136.95,136.87,6.0348]
[1741516204102,2.0507,137.0,136.87,6.0348]
[1741516204103,29.54,136.96,136.94,0.05203935]
[1741516204308,0.05117785,136.92,136.87,35.5748]
[1741516204506,29.54,136.96,136.87,35.5748]
[1741516204709,0.04831019,136.91,136.88,0.05018399]
[1741516204910,0.04831019,136.91,136.9,7.3059]
[1741516205116,29.54,136.96,136.88,0.05018399]
[1741516205408,7.3036,136.95,136.88,0.05018399]
[1741516205610,29.54,136.96,136.88,0.05018399]
[1741516206004,7.3039,136.94,136.89,7.306]
[1741516206208,0.048941,136.93,136.87,6.0348]
[1741516206408,0.048941,136.93,136.92,7.3048]
[1741516206909,0.048941,136.93,136.9,7.35399696]
[1741516207214,0.048941,136.93,136.9,0.04819696]
[1741516208309,36.945,136.92,136.9,0.04819696]
[1741516209015,29.64,136.92,136.9,0.04819696]
[1741516209619,7.3053,136.91,136.9,0.04819696]
[1741516209810,29.64,136.92,136.9,0.04819696]
[1741516210413,29.64,136.92,136.84,1.9]
[1741516211520,0.05449779,136.89,136.87,0.04677149]
[1741516211819,0.05449779,136.89,136.88,7.3069]
[1741516216623,0.05449779,136.89,136.87,7.35397149]
[1741516217029,0.05449779,136.89,136.87,0.04677149]
[1741516217217,7.3069,136.88,136.87,0.04677149]
[1741516217529,7.3069,136.88,136.84,7.3089]
[1741516217530,29.56,136.88,136.81,3.9442]
[1741516217831,33.6164,136.88,136.82,7.3098]
[1741516218021,33.6164,136.88,136.8,1.9009]
[1741516218225,33.6164,136.88,136.78,3.8241]
[1741516218723,0.04853485,136.84,136.82,0.05392502]
[1741516219124,0.04853485,136.84,136.83,7.3093]
[1741516219828,0.04853485,136.84,136.82,7.36402502]
[1741516221129,0.04853485,136.84,136.82,0.05392502]
[1741516221324,0.04853485,136.84,136.83,7.3096]
[1741516221629,0.04853485,136.84,136.82,0.05392502]
[1741516222329,0.04853485,136.84,136.82,7.36352502]
[1741516223624,0.04853485,136.84,136.82,0.05392502]
[1741516223821,0.04853485,136.84,136.83,7.3096]
[1741516224228,0.04853485,136.84,136.82,0.05392502]
[1741516224429,0.04853485,136.84,136.82,7.36382502]
[1741516224628,0.04853485,136.84,136.82,0.05392502]
[1741516225434,0.04853485,136.84,136.82,7.36382502]
[1741516225926,0.04853485,136.84,136.82,0.05392502]
[1741516226129,29.5,136.83,136.82,0.05392502]
[1741516226324,29.5,136.83,136.75,1.876]
[1741516226524,29.5,136.83,136.76,7.3131]
[1741516226729,3.9773,136.82,136.71,31.4042]
[1741516227229,7.3121,136.79,136.75,7.3136]
[1741516227429,29.52887346,136.78,136.75,7.3667091]
[1741516227628,36.84147346,136.78,136.75,7.3667091]
[1741516227832,29.52887346,136.78,136.75,0.0531091]
[1741516228227,29.5,136.77,136.7,7.3161]
[1741516228733,29.5,136.77,136.65,3.8554]
[1741516228927,7.315,136.73,136.65,3.8554]
[1741516229127,29.58,136.72,136.65,3.8554]
[1741516229433,36.8959,136.72,136.67,7.318]
[1741516229636,0.05569573,136.7,136.67,7.34000586]
[1741516229934,0.05569573,136.7,136.67,0.02200586]
[1741516232030,29.7,136.69,136.67,0.02200586]
[1741516233432,0.05569573,136.7,136.67,0.02200586]
[1741516233938,0.05569573,136.7,136.69,7.3171]
[1741516234332,29.7,136.76,136.68,31.6349]
[1741516234628,29.7,136.77,136.74,7.314]
[1741516235135,241.36,136.8,136.69,1.8757]
[1741516235327,29.68,136.79,136.72,0.05301845]
[1741516235534,0.0519278,136.74,136.72,0.05301845]
[1741516235840,0.05544627,136.74,136.72,0.05301845]
[1741516236138,0.05544627,136.74,136.73,7.3148]
[1741516236642,29.68,136.79,136.72,0.05301845]
[1741516237438,2.0001,136.78,136.72,7.36841845]
[1741516237638,0.05491852,136.77,136.72,7.36841845]
[1741516237834,7.36811852,136.77,136.72,0.05301845]
[1741516238041,0.05491852,136.77,136.72,0.05301845]
[1741516238441,0.05491852,136.77,136.75,7.3138]
[1741516238643,0.05491852,136.77,136.72,0.05301845]
[1741516241766,0.05491852,136.77,136.73,7.3148]
[1741516242156,0.05491852,136.77,136.72,0.05301845]
[1741516242351,0.05491852,136.77,136.74,7.3141]
[1741516242742,0.05491852,136.77,136.72,0.05301845]
[1741516242944,0.05491852,136.77,136.75,7.3135]
[1741516243142,0.05491852,136.77,136.72,0.05301845]
[1741516243344,7.36791852,136.77,136.72,7.36811845]
[1741516243744,0.05491852,136.77,136.72,0.05301845]
[1741516243947,0.05491852,136.77,136.73,7.3145]
[1741516244142,0.05491852,136.77,136.72,0.05301845]
[1741516246144,0.05491852,136.77,136.75,7.3139]
[1741516246450,0.05491852,136.77,136.72,0.05301845]
[1741516247852,7.3137,136.76,136.72,7.36811845]
[1741516248151,0.05491852,136.77,136.72,0.05301845]
[1741516250255,0.05491852,136.77,136.76,7.3133]
[1741516252251,0.05491852,136.77,136.75,0.04961863]
[1741516253451,36.9333,136.76,136.75,0.04961863]
[1741516253845,29.62,136.76,136.71,7.3157]
[1741516254047,7.3146,136.74,136.71,7.3157]
[1741516254248,29.62,136.76,136.67,2.0186]
[1741516254449,29.62,136.76,136.66,1.9078]
[1741516254656,5.7808,136.75,136.66,1.9078]
[1741516254851,5.7808,136.75,136.62,3.9741]
[1741516255057,0.04828138,136.72,136.69,0.05127601]
[1741516255260,29.58,136.71,136.69,0.05127601]
[1741516255651,36.8964,136.71,136.69,0.05127601]
[1741516255958,29.58,136.71,136.69,0.05127601]
[1741516256155,7.3166,136.7,136.69,0.05127601]
[1741516256353,29.58,136.71,136.62,33.5341]
[1741516256556,29.58,136.71,136.61,243.3183]
[1741516256557,29.58,136.71,136.64,7.3196]
[1741516257157,29.58,136.71,136.61,1.9383]
[1741516257362,7.3181,136.68,136.66,0.03225322]
[1741516257558,29.54,136.67,136.66,0.03225322]
[1741516258662,29.54,136.67,136.58,29.5]
[1741516259064,29.54,136.67,136.6,7.3215]
[1741516259561,7.3194,136.65,136.6,7.3219]
[1741516259760,7.36694091,136.65,136.6,7.3219]
[1741516259965,7.36694091,136.65,136.58,29.48]
[1741516259966,0.04754091,136.65,136.58,29.48]
[1741516260160,0.04754091,136.65,136.64,7.3198]
[1741516261363,0.04754091,136.65,136.63,7.3201]
[1741516261667,29.46754091,136.65,136.63,7.3201]
[1741516262261,29.46754091,136.65,136.57,31.4685]
[1741516263064,29.46754091,136.65,136.64,7.3198]
[1741516263262,0.04754091,136.65,136.64,7.3198]
[1741516263662,29.36,136.7,136.63,0.04754091]
[1741516263858,29.36,136.7,136.63,3.8908]
[1741516264762,0.04609764,136.68,136.65,0.04754091]
[1741516264961,85.30427724,136.77,136.65,0.04754091]
[1741516265157,29.34,136.75,136.63,3.8908]
[1741516265364,29.34,136.75,136.71,7.3157]
[1741516265575,29.34,136.75,136.63,3.8908]
[1741516265863,36.654,136.75,136.7,7.3161]
[1741516266064,29.32,136.74,136.63,3.8908]
[1741516266261,29.3739882,136.74,136.63,3.8908]
[1741516266463,0.05496525,136.7,136.67,0.05438007]
[1741516267168,0.05496525,136.7,136.69,7.3171]
[1741516267867,0.05496525,136.7,136.68,7.3176]
[1741516268775,29.22,136.69,136.67,0.05438007]
[1741516269168,36.5372,136.69,136.67,0.05438007]
[1741516269569,29.22,136.69,136.67,0.05438007]
[1741516270471,29.22,136.69,136.68,7.3176]
[1741516270867,29.22,136.69,136.67,0.05438007]
[1741516271975,29.22,136.69,136.67,7.37218007]
[1741516272164,29.22,136.69,136.67,0.05438007]
[1741516272363,7.3176,136.68,136.67,0.05438007]
[1741516272570,29.22,136.69,136.6,29.1]
[1741516272874,35.1684,136.69,136.6,29.1]
[1741516273374,35.1684,136.69,136.57,5.9067]
[1741516273574,35.1684,136.69,136.57,35.0067]
[1741516273775,35.1684,136.69,136.62,0.03925847]
[1741516273776,0.04760914,136.64,136.62,0.03925847]
[1741516273976,29.1,136.65,136.62,0.03925847]
[1741516274169,0.0549378,136.64,136.62,0.03925847]
[1741516275577,0.0549378,136.64,136.62,7.36005847]
[1741516276475,0.0549378,136.64,136.62,0.03925847]
[1741516277172,29.04,136.68,136.62,0.03925847]
[1741516277574,29.04,136.71,136.62,0.03925847]
[1741516277776,29.04,136.71,136.6,29.02]
[1741516278176,29.04,136.71,136.67,7.3179]
[1741516278377,0.04678348,136.67,136.64,0.05164412]
[1741516278577,29.04,136.71,136.6,29.02]
[1741516278781,29.02,136.71,136.68,7.3172]
[1741516278980,0.05295468,136.67,136.64,0.05407846]
[1741516279182,29.02,136.71,136.68,0.04977725]
[1741516279375,29.02,136.71,136.66,7.3184]
[1741516279576,36.3912503,136.71,136.68,0.05557203]
[1741516279778,29.0749503,136.71,136.59,29.0]
[1741516279971,29.02,136.71,136.59,29.0]
[1741516280182,29.02,136.71,136.57,172.7319]
[1741516280681,7.3173,136.69,136.57,172.7319]
[1741516281180,0.04858117,136.64,136.62,0.03862425]
[1741516281381,29.06,136.66,136.62,0.03862425]
[1741516281582,0.05187882,136.64,136.62,0.03862425]
[1741516282183,0.05187882,136.64,136.63,7.3203]
[1741516282780,29.06,136.68,136.62,0.03862425]
[1741516282981,29.06,136.68,136.6,29.06]
[1741516283479,29.06,136.68,136.67,7.3182]
[1741516283878,0.05017582,136.69,136.66,0.0461924]
[1741516284082,29.06,136.71,136.65,3.951]
[1741516284283,0.05070777,136.69,136.66,0.05361022]
[1741516284686,0.05070777,136.69,136.68,7.3176]
[1741516285582,241.44,136.76,136.66,0.05361022]
[1741516285780,29.06,136.73,136.65,3.951]
[1741516285977,29.69392698,136.77,136.65,3.951]
[1741516286183,29.04,136.76,136.65,3.951]
[1741516286580,29.69392698,136.77,136.65,3.951]
[1741516286782,29.04,136.76,136.73,7.3148]
[1741516286983,0.05071497,136.72,136.65,3.951]
[1741516287183,29.04,136.76,136.73,0.05338321]
[1741516287381,29.04,136.76,136.72,7.3153]
[1741516287582,36.40026783,136.76,136.73,0.05241925]
[1741516287776,29.08686783,136.76,136.73,0.05241925]
[1741516288183,29.08686783,136.76,136.66,2.0223]
[1741516288489,7.3151,136.73,136.66,2.0223]
[1741516288689,29.06,136.72,136.66,2.0223]
[1741516289190,0.05297578,136.7,136.68,0.05050781]
[1741516289488,0.05297578,136.7,136.69,7.3169]
[1741516293285,0.05297578,136.7,136.68,0.05050781]
[1741516295094,0.05297578,136.7,136.68,7.36800781]
[1741516295993,0.05297578,136.7,136.68,0.05050781]
[1741516297502,28.92,136.69,136.68,0.05050781]
[1741516298185,36.2371,136.69,136.68,0.05050781]
[1741516298388,28.92,136.69,136.68,0.05050781]
[1741516299098,28.92,136.69,136.68,7.36810781]
[1741516299596,28.92,136.69,136.68,0.05050781]
[1741516300495,36.2371,136.69,136.68,0.05050781]
[1741516300888,28.92,136.69,136.68,0.05050781]
[1741516301598,36.2371,136.69,136.68,0.05050781]
[1741516301799,28.92,136.69,136.61,5.6985]
[1741516302803,0.05211238,136.66,136.64,0.03828378]
[1741516303698,0.05211238,136.66,136.65,7.3192]
[1741516303904,0.05211238,136.66,136.64,0.03828378]
[1741516304398,28.96,136.65,136.64,0.03828378]
[1741516305395,28.96,136.65,136.56,5.7759]
[1741516305603,36.2795,136.65,136.61,7.3213]
[1741516306198,28.96,136.65,136.61,7.3213]
[1741516306599,0.04671928,136.64,136.6,7.3217]
[1741516306899,0.04671928,136.64,136.53,28.9]
[1741516307105,28.96,136.65,136.61,7.3211]
[1741516307501,0.05425899,136.64,136.54,4.0143]
[1741516307702,28.96,136.65,136.54,4.0143]
[1741516308001,0.04825486,136.6,136.54,4.0143]
[1741516308403,0.04825486,136.6,136.59,7.3224]
[1741516310501,5.486e-05,136.6,136.59,7.3224]
[1741516319109,5.486e-05,136.6,136.59,11.4078]
[1741516319511,5.486e-05,136.6,136.59,15.0678]
[1741516319912,5.486e-05,136.6,136.59,181.893]
[1741516320312,5.486e-05,136.6,136.59,423.473]
[1741516320811,5.486e-05,136.6,136.59,424.81765358]
[1741516321012,5.486e-05,136.6,136.59,423.473]
[1741516321212,5.486e-05,136.6,136.59,424.8176172]
[1741516322916,5.486e-05,136.6,136.59,257.9924172]
[1741516326919,5.486e-05,136.6,136.59,451.9924172]
[1741516327918,5.486e-05,136.6,136.59,450.6478]
[1741516328217,5.486e-05,136.6,136.59,463.3777345]
[1741516328421,5.486e-05,136.6,136.59,446.9878]
[1741516328716,5.486e-05,136.6,136.59,480.91227719]
[1741516329617,5.486e-05,136.6,136.59,448.33227719]
[1741516329814,5.486e-05,136.6,136.59,477.35227719]
[1741516330018,5.486e-05,136.6,136.59,481.01227719]
[1741516331419,5.486e-05,136.6,136.59,448.33227719]
[1741516331720,5.486e-05,136.6,136.59,475.9878]
[1741516333518,5.486e-05,136.6,136.59,479.6478]
[1741516333714,5.486e-05,136.6,136.59,475.9878]
[1741516333917,5.486e-05,136.6,136.59,479.6478]
[1741516334118,5.486e-05,136.6,136.59,446.9878]
[1741516334322,5.486e-05,136.6,136.59,442.9024]
[1741516334920,5.486e-05,136.6,136.59,471.8024]
[1741516336122,5.486e-05,136.6,136.59,475.4624]
[1741516336322,5.486e-05,136.6,136.59,476.80700352]
[1741516337327,5.486e-05,136.6,136.59,476.80698679]
[1741516337526,5.486e-05,136.6,136.59,473.14698679]
[1741516337727,5.486e-05,136.6,136.59,476.80698679]
[1741516338925,5.486e-05,136.6,136.59,475.4624]
[1741516339231,5.486e-05,136.6,136.59,476.80699982]
[1741516340622,2.0197,136.74,136.73,7.315]
[1741516342723,2.0197,136.74,136.72,0.04825486]
[1741516342724,3.9436803,136.75,136.72,0.04825486]
[1741516342924,3.9436803,136.75,136.74,7.3144]
[1741516342925,8.03e-05,136.75,136.74,7.3144]
[1741516344526,8.03e-05,136.75,136.72,0.04825486]
[1741516345328,8.03e-05,136.75,136.74,7.3144]
[1741516345528,8.03e-05,136.75,136.72,0.04825486]
[1741516345931,8.03e-05,136.75,136.74,7.3144]
[1741516346634,8.03e-05,136.75,136.74,4.2012]
[1741516347133,8.03e-05,136.75,136.72,0.04825486]
[1741516347826,8.03e-05,136.75,136.74,7.3144]
[1741516349030,8.03e-05,136.75,136.74,4.8465]
[1741516359432,8.03e-05,136.75,136.74,8.5065]
[1741516359737,8.03e-05,136.75,136.74,4.8465]
[1741516368545,8.03e-05,136.75,136.74,198.8465]
[1741516368744,8.03e-05,136.75,136.74,202.5065]
[1741516369244,8.03e-05,136.75,136.74,203.8497753]
[1741516371449,8.03e-05,136.75,136.74,225.8297753]
[1741516371644,8.03e-05,136.75,136.74,203.84956116]
[1741516372837,8.03e-05,136.75,136.74,200.18956116]
[1741516373042,8.03e-05,136.75,136.74,203.84956116]
[1741516379148,8.03e-05,136.75,136.74,229.30956116]
[1741516379349,8.03e-05,136.75,136.74,200.18956116]
[1741516379550,8.03e-05,136.75,136.74,229.30956116]
[1741516380152,8.03e-05,136.75,136.74,469.1665]
[1741516381056,8.03e-05,136.75,136.74,469.1465]
[1741516383058,8.03e-05,136.75,136.74,470.48972539]
[1741516383255,8.03e-05,136.75,136.74,474.14972539]
[1741516383463,8.03e-05,136.75,136.74,470.48972539]
[1741516383954,8.03e-05,136.75,136.74,474.14972539]
[1741516384154,46.41967535,136.96,136.78,14.6244]
[1741516384155,29.12,136.92,136.78,14.6244]
[1741516384351,29.16,136.91,136.79,29.16]
[1741516384555,36.4654,136.91,136.79,29.16]
[1741516384755,36.4654,136.91,136.87,7.3071]
[1741516385150,0.05413006,136.9,136.88,0.05391978]
[1741516385348,0.05413006,136.9,136.88,7.36061978]
[1741516385559,0.05413006,136.9,136.88,0.05391978]
[1741516386157,3.71413006,136.9,136.88,0.05391978]
[1741516386358,0.05413006,136.9,136.88,0.05391978]
[1741516386758,0.05413006,136.9,136.89,7.3064]
[1741516387657,3.006e-05,136.9,136.89,7.3064]
[1741516388360,3.006e-05,136.9,136.88,36.54061978]
[1741516388957,3.006e-05,136.9,136.88,29.23391978]
[1741516391362,3.006e-05,136.9,136.89,7.3064]
[1741516392165,3.006e-05,136.9,136.88,36.54051978]
[1741516392866,3.006e-05,136.9,136.88,0.05391978]
[1741516393462,7.30633006,136.9,136.88,0.05391978]
[1741516394265,3.006e-05,136.9,136.88,7.36081978]
[1741516394464,3.006e-05,136.9,136.88,0.05391978]
[1741516394863,3.006e-05,136.9,136.88,7.36051978]
[1741516395065,3.006e-05,136.9,136.88,0.05391978]
[1741516395464,3.006e-05,136.9,136.89,29.08]
[1741516396565,3.006e-05,136.9,136.89,36.3864]
[1741516398160,3.006e-05,136.9,136.89,98.3864]
[1741516402873,3.006e-05,136.9,136.88,7.36051978]
[1741516403072,3.006e-05,136.9,136.88,0.05391978]
[1741516403968,3.006e-05,136.9,136.88,7.36051978]
[1741516405175,3.006e-05,136.9,136.89,7.3064]
[1741516405368,3.006e-05,136.9,136.88,0.05391978]
[1741516405671,3.006e-05,136.9,136.88,7.36061978]
[1741516405873,3.006e-05,136.9,136.88,69.36061978]
[1741516407080,7.3064,136.89,136.88,0.05391978]
[1741516407474,3.006e-05,136.9,136.88,0.05391978]
[1741516407974,7.30633006,136.9,136.88,0.05391978]
[1741516408176,3.006e-05,136.9,136.88,0.05391978]
[1741516408369,3.006e-05,136.9,136.88,7.36071978]
[1741516408566,3.006e-05,136.9,136.88,0.05391978]
[1741516408567,3.66003006,136.9,136.88,0.05391978]
[1741516408769,3.66003006,136.9,136.82,241.18]
[1741516408978,3.006e-05,136.9,136.81,29.02]
[1741516409277,29.02,136.92,136.81,29.02]
[1741516409576,7.3063,136.9,136.81,29.02]
[1741516409778,0.0553142,136.87,136.84,0.04669473]
[1741516410174,0.0553142,136.87,136.85,62.0]
[1741516410372,0.0553142,136.87,136.86,7.308]
[1741516410779,0.0553142,136.87,136.84,0.04669473]
[1741516410981,0.0553142,136.87,136.85,7.3082]
[1741516411274,0.0553142,136.87,136.84,0.04669473]
[1741516411474,7.3085,136.85,136.84,0.04669473]
[1741516412078,7.3630142,136.87,136.84,0.04669473]
[1741516412479,3.7153142,136.87,136.84,0.04669473]
[1741516412675,0.0553142,136.87,136.84,0.04669473]
[1741516413276,0.0553142,136.87,136.86,7.308]
[1741516414181,1.42e-05,136.87,136.86,7.308]
[1741516423080,1.42e-05,136.87,136.84,277.35559473]
[1741516423382,1.42e-05,136.87,136.84,28.90669473]
[1741516423783,1.42e-05,136.87,136.86,7.308]
[1741516438793,1.42e-05,136.87,136.85,36.1082]
[1741516439097,1.42e-05,136.87,136.85,7.3082]
[1741516439294,3.6600142,136.87,136.84,0.04669473]
[1741516439597,7.3085,136.85,136.84,0.04669473]
[1741516440298,39.5285,136.85,136.84,0.04669473]
[1741516440500,7.3092,136.84,136.77,28.56]
[1741516440702,28.56,136.85,136.77,28.56]
[1741516440894,7.3091,136.84,136.77,28.56]
[1741516441501,7.36424669,136.82,136.79,0.05474803]
[1741516441706,0.05394669,136.82,136.79,0.05474803]
[1741516442006,28.58,136.81,136.79,0.05474803]
[1741516444210,28.58,136.81,136.79,7.36614803]
[1741516444409,28.58,136.81,136.79,0.05474803]
[1741516446008,28.58,136.81,136.79,7.36624803]
[1741516446204,28.58,136.81,136.79,0.05474803]
[1741516446409,0.05394669,136.82,136.79,0.05474803]
[1741516446604,0.05394669,136.82,136.8,7.3112]
[1741516447004,0.05394669,136.82,136.79,7.36624803]
[1741516447211,7.36434669,136.82,136.79,7.36624803]
[1741516447604,7.311,136.81,136.79,0.05474803]
[1741516447804,0.05394669,136.82,136.79,0.05474803]
[1741516448108,7.3112,136.8,136.79,0.05474803]
[1741516448310,28.48,136.8,136.66,28.48]
[1741516448700,28.48,136.8,136.77,7.3127]
[1741516448905,28.48,136.8,136.71,28.46]
[1741516449111,28.48,136.8,136.76,7.3133]
[1741516449112,35.7917,136.8,136.76,7.3133]
[1741516449411,0.05313082,136.79,136.77,0.04690234]
[1741516449612,0.05313082,136.79,136.72,4.0075]
[1741516449800,0.05313082,136.79,136.77,0.04982632]
[1741516450000,0.05313082,136.79,136.72,6.0745]
[1741516450306,0.05313082,136.79,136.78,7.3123]
[1741516450917,7.3081,136.86,136.77,0.04993627]
[1741516451215,28.46,136.88,136.75,28.46]
[1741516452213,0.05335826,136.83,136.82,7.3101]
[1741516452414,7.3084,136.86,136.82,7.3101]
[1741516452615,0.05403086,136.84,136.82,7.3101]
[1741516452910,28.49403086,136.84,136.81,0.05146814]
[1741516453211,35.80323086,136.84,136.81,0.05146814]
[1741516453911,28.49403086,136.84,136.81,0.05146814]
[1741516455017,28.49403086,136.84,136.83,7.3096]
[1741516456117,28.49403086,136.84,136.82,7.3099]
[1741516457717,0.05403086,136.84,136.81,0.05146814]
[1741516457917,0.05403086,136.84,136.83,7.3096]
[1741516462619,0.05403086,136.84,136.81,0.05146814]
[1741516462821,0.05403086,136.84,136.83,7.3096]
[1741516463418,0.05403086,136.84,136.81,0.05146814]
[1741516463910,7.36323086,136.84,136.81,7.36186814]
[1741516464314,0.05403086,136.84,136.81,0.05146814]
[1741516465219,0.05403086,136.84,136.82,7.3101]
[1741516465426,0.05403086,136.84,136.81,0.05146814]
[1741516465923,0.05403086,136.84,136.83,7.3096]
[1741516466222,0.05403086,136.84,136.81,0.05146814]
[1741516466611,0.05403086,136.84,136.82,7.3101]
[1741516467414,0.05403086,136.84,136.83,7.3096]
[1741516468524,0.05403086,136.84,136.82,7.3097]
[1741516469924,0.05403086,136.84,136.83,7.3096]
[1741516473732,7.36313086,136.84,136.81,0.05146814]
[1741516474232,7.36313086,136.84,136.81,7.36156814]
[1741516474630,7.3099,136.83,136.81,0.05146814]
[1741516474826,0.05403086,136.84,136.81,0.05146814]
[1741516475226,7.36353086,136.84,136.81,0.05146814]
[1741516475427,0.05403086,136.84,136.81,0.05146814]
[1741516475627,7.31,136.83,136.81,0.05146814]
[1741516477027,7.3101,136.82,136.81,0.05146814]
[1741516477227,28.2,136.83,136.74,31.9994]
[1741516477628,193.0,136.9,136.74,31.9994]
[1741516477629,35.4882,136.86,136.74,31.9994]
[1741516477830,28.18,136.86,136.74,31.9994]
[1741516478226,28.18,136.86,136.74,3.8194]
[1741516478432,0.04723946,136.81,136.79,0.053111]
[1741516478627,28.2,136.8,136.79,0.053111]
[1741516482141,35.5112,136.8,136.79,0.053111]
[1741516482433,35.5112,136.8,136.74,3.8194]
[1741516483438,28.2,136.8,136.74,3.8194]
[1741516484742,7.3138,136.76,136.74,3.8194]
[1741516485137,7.36535653,136.76,136.74,3.8194]
[1741516485441,7.3144,136.75,136.7,28.14]
[1741516485638,7.3144,136.75,136.7,32.1959]
[1741516485835,0.04838901,136.74,136.7,32.1959]
[1741516486542,7.36298901,136.74,136.7,4.0559]
[1741516487237,0.04838901,136.74,136.7,4.0559]
[1741516488345,7.3151,136.73,136.7,4.0559]
[1741516488644,0.04838901,136.74,136.7,4.0559]
[1741516488838,7.316,136.71,136.7,4.0559]
[1741516490039,7.3175,136.69,136.67,1.9566]
[1741516490444,7.37155967,136.69,136.67,1.9566]
[1741516490847,7.3182,136.67,136.66,3.7741]
[1741516491048,0.05405967,136.69,136.66,3.7741]
[1741516492447,28.14,136.68,136.6,1.8947]
[1741516492748,28.14,136.68,136.6,5.914]
[1741516492941,0.05422872,136.65,136.6,5.914]